Cogmind - Beta 16.1 @@@ ROGUE MODE // 2026.02.23 @ 07:36:56 Player: AlmondRoll Result: Self-destructed Performance ------------- Evolutions (5) 2500 Regions Visited (16) 3200 Robots Destroyed (114) 570 Value Destroyed (2418) 2418 Prototype IDs (53) 1060 Alien Tech Used (0) 0 Bonus (2080) 2080 TOTAL SCORE: 11828 Bonus ------- Follower Combat Kills 580 Hunted by Unchained 500 Network Hubs Disabled 200 Registered with UFD 300 Met Optimus in HQ 500 Cogmind --------- Core Integrity 393/1000 Matter 300/300 Energy 71/100 System Corruption 0% Temperature Cool (0) Movement Core (50) Location -5/Factory Parts ------- > --- POWER (1) -------- (None) > --- PROPULSION (6) --- (None) > --- UTILITY (8) ------ Improved Signal Interpreter Transport Network Coupler > --- WEAPON (2) ------- (None) > --- INVENTORY (5) ---- Light Fission Core Improved Energy Well (330) IFF Parser Advanced System Shield Authchip [Device] Peak State ------------ > --- POWER ------------ Micro Antimatter Reactor > --- PROPULSION ------- Improved Cesium-ion Thruster Cooled VTOL Module Cooled VTOL Module Nuclear Pulse Thruster Biomechanical Wings Cooled Nuclear Pulse Thruster > --- UTILITY ---------- Medium Storage Unit ECM Suite Hardened Medium Armor Plating Hacking Suite Improved Hacking Suite Improved Hacking Suite Improved System Shield A0-MCA's Component Scanner > --- WEAPON ----------- Advanced Datajack Companion Sword > --- INVENTORY -------- Fusion Compressor Power Amplifier Experimental Heat Sink Improved Energy Well IFF Parser Surveybot 17 Chip Authchip [Device] Mini Grenade Launcher Improved Datajack Improved Plasma Cutter [Rating: 91] Favorites ----------- Power Light Nuclear Core Engine Light Ion Engine Power Core Light Nuclear Core Reactor Micro Antimatter Reactor Propulsion Light Treads Treads Light Treads Leg Improved Aluminum Leg Flight Unit Cooled VTOL Module Utility Large Storage Unit Device Structural Scanner Storage Large Storage Unit Processor A0-MCA's Component Scanner Hackware Hacking Suite Protection Light Armor Plating Weapon Companion Sword Energy Gun Improved Medium Laser Energy Cannon Advanced Beam Cannon Ballistic Gun Assault Rifle Launcher Mini Grenade Launcher Special Weapon Plasma Cutter Slashing Weapon Companion Sword Special Melee Weapon Datajack Build | -11 -10 -10 -9 -9 -9 -9 -6 -6 -6 -6 -6 -6 -6 -5 -5 -5 ------- Run | Yrd Mat Min Mat Sto Rec Scr Fac Was Fac Ext Cet Arc Hub Fac Was Fac Slots Evolved 10 | . . . 2 . . . 6 . . . . . . 2 . . Power . | . . . . . . . . . . . . . . . . . Propulsion 4 | . . . . . . . 3 . . . . . . 1 . . Utility 6 | . . . 2 . . . 3 . . . . . . 1 . . Weapon . | . . . . . . . . . . . . . . . . . Parts Attached 112 | 2 13 2 13 20 . 4 18 1 12 7 . . 3 10 . 7 Power 11 | . 2 1 1 1 . 1 2 . 1 1 . . . 1 . . Engine 5 | . 2 1 1 1 . . . . . . . . . . . . Core 5 | . . . . . . 1 2 . . 1 . . . 1 . . Reactor 1 | . . . . . . . . . 1 . . . . . . . Propulsion 33 | 2 3 . 3 6 . . 5 1 7 1 . . . 3 . 2 Treads 10 | 2 . . 3 5 . . . . . . . . . . . . Leg 3 | . 3 . . . . . . . . . . . . . . . Wheel . | . . . . . . . . . . . . . . . . . Hover . | . . . . . . . . . . . . . . . . . Flight 20 | . . . . 1 . . 5 1 7 1 . . . 3 . 2 Utility 43 | . 4 1 4 4 . 1 10 . 4 5 . . 1 5 . 4 Device 13 | . . . 3 1 . . 4 . . 1 . . . 3 . 1 Storage 4 | . 2 . . . . . 1 . . 1 . . . . . . Processor 5 | . 1 1 . . . 1 . . . . . . . . . 2 Hackware 9 | . . . . . . . 5 . 3 . . . . 1 . . Protection 12 | . 1 . 1 3 . . . . 1 3 . . 1 1 . 1 Artifact . | . . . . . . . . . . . . . . . . . Weapon 25 | . 4 . 5 9 . 2 1 . . . . . 2 1 . 1 Energy Gun 4 | . 1 . 2 . . . . . . . . . . . . 1 Energy Cannon 6 | . . . 2 4 . . . . . . . . . . . . Ballistic Gun 7 | . 3 . 1 3 . . . . . . . . . . . . Ballistic Cannon . | . . . . . . . . . . . . . . . . . Launcher 1 | . . . . 1 . . . . . . . . . . . . Special Weapon 1 | . . . . . . . . . . . . . 1 . . . Impact Weapon . | . . . . . . . . . . . . . . . . . Slashing Weapon 2 | . . . . 1 . 1 . . . . . . . . . . Piercing Weapon . | . . . . . . . . . . . . . . . . . Special Melee Weapon 4 | . . . . . . 1 1 . . . . . 1 1 . . Unidentified Prototypes 5 | . . . 2 3 . . . . . . . . . . . . Parts Lost 30 | . 5 . 1 . . . 1 . 2 2 1 . 2 3 . 13 Power 7 | . 2 . 1 . . . 1 . 1 . . . . . . 2 Propulsion 12 | . 2 . . . . . . . . . 1 . . 3 . 6 Utility 8 | . . . . . . . . . . 2 . . 2 . . 4 Weapon 3 | . 1 . . . . . . . 1 . . . . . . 1 Highest Loss Streak 12 | . 2 . 1 . . . 1 . 1 2 1 . 2 1 . 12 To Critical Strikes . | . . . . . . . . . . . . . . . . . Average Backups 12 | 5 8 13 14 14 15 15 9 9 9 10 9 9 9 8 10 9 Power . | 1 . . . . . . . . . . 1 1 1 1 1 1 Propulsion 3 | 3 3 2 1 4 6 6 1 2 1 2 1 1 1 . . . Utility 5 | . . 4 4 4 5 6 5 5 5 5 5 5 5 5 7 7 Weapon 2 | 1 3 5 7 4 3 2 1 1 1 1 1 1 1 . . . Tool/Special . | . . . . . . . . . . . . . . . . . Unused Backups 45 | . 9 1 11 5 . 2 3 . 2 . . . 1 3 . 8 Power 3 | . 1 . . . . . 1 . . . . . 1 . . . Propulsion 7 | . 2 . 1 2 . . . . 1 . . . . 1 . . Utility 15 | . 1 . 1 . . 1 2 . 1 . . . . 2 . 7 Weapon 19 | . 5 1 9 3 . 1 . . . . . . . . . . Tool/Special 1 | . . . . . . . . . . . . . . . . 1 Average Slot Usage (%) 97 | . 96 100 97 100 100 99 99 100 95 92 93 93 91 91 94 91 Engine 4 | . 13 14 9 11 11 . . . . . . . . . . . Core 3 | . . . . . . 10 6 6 5 1 . . . . 5 . Reactor 1 | . . . . . . . . . . 4 6 6 6 4 . 4 Treads 13 | . 10 28 21 22 22 22 . . . . . . . . . . Leg 1 | . 17 . . . . . . . . . . . . . . . Flight 11 | . . . . . . . 32 33 33 33 33 33 33 32 29 29 Device 8 | . . . 17 14 11 11 9 6 10 6 9 11 8 3 5 6 Storage 9 | . 14 14 11 11 11 11 6 6 6 6 6 6 6 5 5 4 Processor 9 | . 8 11 11 11 11 10 6 6 6 6 6 6 6 5 5 12 Hackware 7 | . . . . . . . 21 20 20 20 20 20 20 22 23 14 Protection 5 | . 2 2 3 7 11 11 1 6 1 5 2 1 2 1 5 3 Energy Gun 1 | . 5 . 5 . . . . . . . . . . . . . Energy Cannon 1 | . . . 11 7 . . . . . . . . . . . . Ballistic Gun 7 | . 22 28 4 14 22 2 . . . . . . . . . . Slashing Weapon 4 | . . . . . . 8 6 6 6 6 6 6 6 5 5 4 Special Melee Weapon 3 | . . . . . . 10 6 6 1 . . . . 2 5 4 Peak Build Rating 91 | 6 11 13 24 24 18 28 63 61 74 76 74 75 76 91 81 91 Average Rating 37 | 5 9 11 20 20 18 22 58 61 69 72 72 72 73 80 81 85 On Entrance 44 | 6 6 8 13 20 18 18 28 59 61 71 74 72 75 72 81 81 Avg Prop Armor Cover (%) . | . . . . . . . . . . . . . . . . . Naked Turns . | . . . . . . . . . . . . . . . . . Heaviest Build 39 | 14 28 33 39 38 33 35 26 26 27 27 26 26 30 33 30 33 Greatest Support 42 | 40 40 40 40 40 40 40 26 28 29 33 33 33 33 42 32 39 Greatest Overweight (x) 1 | . . . . . . . . . . . . . . 1 . . Average Overweight (x) . | . . . . . . . . . . . . . . . . . Largest Inventory Capacity 15 | 8 15 15 15 15 15 15 15 10 10 10 10 10 10 10 10 10 Average Capacity 12 | 8 12 15 15 15 15 15 10 10 10 10 10 10 10 10 10 9 Most Carried 15 | 6 10 15 15 15 15 15 14 10 10 10 10 10 10 10 10 10 Average Carried 12 | 4 8 13 14 14 15 14 9 9 9 9 9 9 9 8 10 9 Final Capacity 15 | 8 15 15 15 15 15 15 10 10 10 10 10 10 10 10 10 5 Final Carried 15 | 4 10 15 15 15 15 15 9 10 10 10 9 10 9 10 10 5 Class Distribution -------------------- 36% | Scavenger-Mutant 32% | Hacker-Sprinter 27% | Mutant Dominant Class ---------------- Mutant | -10/Materials Mutant | -10/Mines Mutant | -9/Materials Scavenger-Mutant | -9/Storage Scavenger-Mutant | -9/Recycling Scavenger-Mutant | -9/Scraptown Hacker-Sprinter | -6/Factory Hacker-Sprinter | -6/Waste Hacker-Sprinter | -6/Factory Hacker-Sprinter | -6/Extension Hacker-Sprinter | -6/Cetus Hacker-Sprinter | -6/Archives Hacker-Sprinter | -6/Hub_04(d) Hacker-Sprinter | -5/Factory Hacker-Sprinter | -5/Waste Hacker-Sprinter | -5/Factory Resources | -11 -10 -10 -9 -9 -9 -9 -6 -6 -6 -6 -6 -6 -6 -5 -5 -5 ----------- Run | Yrd Mat Min Mat Sto Rec Scr Fac Was Fac Ext Cet Arc Hub Fac Was Fac Matter Collected 3051 | 226 536 132 246 578 . 51 170 . 395 183 . 20 30 176 . 308 Remotely . | . . . . . . . . . . . . . . . . . Salvage Created 5609 | 79 682 169 1043 1147 . . 183 . 366 609 . 129 410 366 . 426 Parts 276 | 3 39 11 55 73 . . 9 . 16 18 . 5 8 26 . 13 Haulers Intercepted 12 | . 1 . 1 2 . . . . 1 . . . 4 . . 3 Recyclers Shooed 10 | 1 1 1 2 3 . . . . . 2 . . . . . . Parts Field Recycled . | . . . . . . . . . . . . . . . . . Retrieved Matter . | . . . . . . . . . . . . . . . . . Parts Self-Destructed . | . . . . . . . . . . . . . . . . . Prevented . | . . . . . . . . . . . . . . . . . Parts Restored . | . . . . . . . . . . . . . . . . . Kills | -11 -10 -10 -9 -9 -9 -9 -6 -6 -6 -6 -6 -6 -6 -5 -5 -5 ------- Run | Yrd Mat Min Mat Sto Rec Scr Fac Was Fac Ext Cet Arc Hub Fac Was Fac Combat Hostiles Destroyed 52 | . 16 5 10 19 . . . . . 1 . 1 . . . . Melee 2 | . . . . . . . . . . 1 . 1 . . . . Guns 35 | . 16 5 3 11 . . . . . . . . . . . . Cannons 14 | . . . 7 7 . . . . . . . . . . . . Classes Destroyed 11 | 1 6 . 2 2 . . . . . . . . . . . . Worker 4 | . 1 . 1 1 . . . . . . . . . 1 . . Builder 10 | . . . 1 2 . . . . . . . . . 6 . 1 Hauler 12 | . 1 . 1 2 . . . . 1 . . . 4 . . 3 Recycler 21 | 1 2 1 5 3 . . 1 . 2 4 . . . 1 . 1 Operator 9 | . 1 . 2 2 . . 2 . 1 . . 1 . . . . Drone 1 | . . . . 1 . . . . . . . . . . . . Watcher 6 | . 1 . 1 1 . . . . . 1 . . . 2 . . Swarmer 14 | . 6 3 . 5 . . . . . . . . . . . . Grunt 26 | . 10 2 6 7 . . . . . 1 . . . . . . Duelist 1 | . . . . 1 . . . . . . . . . . . . Sentry 11 | . . . 4 6 . . . . . . . 1 . . . . Best Kill Streak 7 | 1 3 3 7 5 . . 1 . 3 2 . 1 2 6 . 2 Combat Bots Only 5 | . 3 3 2 5 . . . . . 1 . 1 . . . . Max Kills in Single Turn 2 | 1 1 1 2 2 . . 1 . 1 1 . 1 1 1 . 1 Gunslinging . | . . . . . . . . . . . . . . . . . Exploded . | . . . . . . . . . . . . . . . . . Melee 1 | . . . . . . . . . . 1 . 1 . . . . Uniques/NPCs Destroyed . | . . . . . . . . . . . . . . . . . Combat | -11 -10 -10 -9 -9 -9 -9 -6 -6 -6 -6 -6 -6 -6 -5 -5 -5 -------- Run | Yrd Mat Min Mat Sto Rec Scr Fac Was Fac Ext Cet Arc Hub Fac Was Fac Hostile Shots Fired 633 | . 121 16 35 50 . . 31 . 118 75 4 . 21 50 . 112 Missed 289 | . 38 5 11 7 . . 19 . 77 42 2 . 9 26 . 53 Hits 344 | . 83 11 24 43 . . 12 . 41 33 2 . 12 24 . 59 Melee 7 | . . . . 2 . . . . . . . . . . . 5 Projectile 337 | . 83 11 24 41 . . 12 . 41 33 2 . 12 24 . 54 AOE 1 | . . . . . . . . . . . . . . 1 . . Critical Strikes 8 | . . . . 1 . . . . . . . . . . . 7 Damage Taken 5106 | . 849 110 347 580 . . 217 . 498 512 56 . 248 444 . 1245 Core 1301 | . 153 . 39 93 . . 60 . 209 74 27 . 39 100 . 507 Absorbed by Shields 116 | . . . . . . . . . . 45 26 . . . . 45 Redirected to Shielding 19 | . . 9 10 . . . . . . . . . . . . . Regen/Repaired (Parts) 312 | . . . 50 . . . . . 95 . . . . 144 . 23 Core Remaining (%) 64 | 100 . 38 . . . 67 . . . . . . 51 . . . Volleys Fired 213 | 2 91 12 41 67 . . . . . . . . . . . . Largest 2 | 2 2 2 2 2 . . . . . . . . . . . . Hottest 136 | 70 85 40 136 136 . . . . . . . . . . . . Shots Fired 414 | 4 170 24 82 134 . . . . . . . . . . . . Gun 337 | 4 170 24 50 89 . . . . . . . . . . . . Cannon 76 | . . . 32 44 . . . . . . . . . . . . Launcher 1 | . . . . 1 . . . . . . . . . . . . Special . | . . . . . . . . . . . . . . . . . Kinetic 257 | 2 130 24 12 89 . . . . . . . . . . . . Thermal 156 | 2 40 . 70 44 . . . . . . . . . . . . Explosive 1 | . . . . 1 . . . . . . . . . . . . Electromagnetic . | . . . . . . . . . . . . . . . . . Robot Hit Streak 18 | 3 12 8 10 18 . . . . . . . . . . . . Robot Miss Streak 7 | . 7 6 3 3 . . . . . . . . . . . . Penetration Max . | . . . . . . . . . . . . . . . . . Secondary Targets 6 | . 3 3 . . . . . . . . . . . . . . Max Gunslinging Chain 1 | . 1 1 . . . . . . . . . . . . . . Shots Hit Robots 336 | 3 99 14 53 84 . . 4 . 7 14 . 7 14 22 . 15 Core Hits 150 | 2 37 10 26 44 . . 3 . 3 6 . 1 5 7 . 6 Critical Kills 3 | . 2 . . 1 . . . . . . . . . . . . Critical Parts Destroyed 1 | . . . . 1 . . . . . . . . . . . . Critical Strikes 7 | 1 2 . . 2 . . . . . . . . 2 . . . Burn 1 | 1 . . . . . . . . . . . . . . . . Meltdown 1 | . . . . 1 . . . . . . . . . . . . Destroy 3 | . 2 . . 1 . . . . . . . . . . . . Melee Attacks 195 | . . . . 3 . . 42 . 32 15 . 10 24 38 . 31 Impact . | . . . . . . . . . . . . . . . . . Slashing 180 | . . . . 3 . . 38 . 31 15 . 10 24 28 . 31 Piercing . | . . . . . . . . . . . . . . . . . Sneak Attacks 40 | . . . . . . . 2 . 5 4 . 3 4 17 . 5 Combat Hostiles 1 | . . . . . . . . . . . . 1 . . . . Follow-up Attacks . | . . . . . . . . . . . . . . . . . Damage Inflicted 8778 | 39 1303 205 1038 1540 . . 202 . 479 830 . 471 788 973 . 910 Guns 3028 | 39 1289 195 588 917 . . . . . . . . . . . . Cannons 1057 | . . . 450 607 . . . . . . . . . . . . Explosions 14 | . . . . 14 . . . . . . . . . . . . Melee 4653 | . . . . . . . 202 . 479 830 . 471 788 973 . 910 Ramming 26 | . 14 10 . 2 . . . . . . . . . . . . Kinetic 2121 | 14 889 195 106 917 . . . . . . . . . . . . Thermal 1964 | 25 400 . 932 607 . . . . . . . . . . . . Explosive 14 | . . . . 14 . . . . . . . . . . . . Electromagnetic . | . . . . . . . . . . . . . . . . . Impact . | . . . . . . . . . . . . . . . . . Slashing 4653 | . . . . . . . 202 . 479 830 . 471 788 973 . 910 Piercing . | . . . . . . . . . . . . . . . . . Highest Corruption 7 | . 1 1 . . . . 5 5 6 6 6 6 7 . . . Average Corruption 3 | . 1 1 . . . . 5 5 5 6 6 6 6 . . . Corruption Purged . | . . . . . . . . . . . . . . . . . Corruption Blocked . | . . . . . . . . . . . . . . . . . Effects 75 | . 6 7 . . . . 10 . 15 30 1 3 3 . . . Message Errors 16 | . 1 1 . . . . 2 . 4 7 . . 1 . . . Matter Fused 19 | . 3 2 . . . . 2 . 4 7 . . 1 . . . Heat Flow Errors 13 | . . 1 . . . . . . 4 7 . . 1 . . . Energy Discharges 13 | . . 2 . . . . 4 . 1 5 . 1 . . . . Data Loss (minor) 5 | . . 1 . . . . 1 . 1 2 . . . . . . Data Loss (major) 7 | . 1 . . . . . 1 . 1 2 1 1 . . . . Alerts 1 | . . . . . . . . . . . . 1 . . . . Weapon Failures 1 | . 1 . . . . . . . . . . . . . . . Overload Shots . | . . . . . . . . . . . . . . . . . Overflow Damage 827 | . . . . 2 . . . . 84 147 . 178 38 250 . 128 Projectiles 2 | . . . . 2 . . . . . . . . . . . . Explosions . | . . . . . . . . . . . . . . . . . Melee 825 | . . . . . . . . . 84 147 . 178 38 250 . 128 Knockbacks . | . . . . . . . . . . . . . . . . . Impact . | . . . . . . . . . . . . . . . . . Kinetic . | . . . . . . . . . . . . . . . . . Secondary . | . . . . . . . . . . . . . . . . . Self-Inflicted Damage . | . . . . . . . . . . . . . . . . . Shots . | . . . . . . . . . . . . . . . . . Rammed 5 | . . 3 . 2 . . . . . . . . . . . . Targets Rammed 9 | . 3 4 . 2 . . . . . . . . . . . . Kicked 3 | . 3 . . . . . . . . . . . . . . . Crushed 1 | . . 1 . . . . . . . . . . . . . . Highest Temperature 471 | 38 471 150 205 162 . . 9 133 211 454 142 40 250 335 280 49 Average Temperature 78 | 22 140 71 30 46 . . 3 70 57 93 78 30 95 78 152 16 Received Heat Transfer 1094 | . 303 27 153 174 . . 36 . 108 137 . . 57 63 . 36 Effects 8 | . 5 . . . . . . . . 2 . . . 1 . . Shutdowns 3 | . 3 . . . . . . . . . . . . . . . Energy Bleed 3 | . 1 . . . . . . . . 2 . . . . . . Interference 1 | . . . . . . . . . . . . . . 1 . . Matter Decay 1 | . 1 . . . . . . . . . . . . . . . Siege Activations . | . . . . . . . . . . . . . . . . . Martial Activations . | . . . . . . . . . . . . . . . . . Shielding Activations . | . . . . . . . . . . . . . . . . . Robots Disrupted . | . . . . . . . . . . . . . . . . . Combat Hostiles . | . . . . . . . . . . . . . . . . . Robots Corrupted . | . . . . . . . . . . . . . . . . . Combat Hostiles . | . . . . . . . . . . . . . . . . . Parts Fried . | . . . . . . . . . . . . . . . . . Impact Corruptions . | . . . . . . . . . . . . . . . . . Robots Melted 1 | . . . . 1 . . . . . . . . . . . . Combat Hostiles 1 | . . . . 1 . . . . . . . . . . . . Parts Melted 9 | 1 4 . 2 2 . . . . . . . . . . . . Heat Transferred 4033 | 148 962 . 1850 1073 . . . . . . . . . . . . Parts Sabotaged . | . . . . . . . . . . . . . . . . . Parts Stolen . | . . . . . . . . . . . . . . . . . Parts Stripped . | . . . . . . . . . . . . . . . . . Power Chain Reactions . | . . . . . . . . . . . . . . . . . Alert | -11 -10 -10 -9 -9 -9 -9 -6 -6 -6 -6 -6 -6 -6 -5 -5 -5 ------- Run | Yrd Mat Min Mat Sto Rec Scr Fac Was Fac Ext Cet Arc Hub Fac Was Fac Maximum Alert Level 1 | . . . . 1 . . . . . 1 . . . . . . Low Security (%) 95 | 100 100 100 100 98 100 . 100 100 100 63 100 100 100 100 100 100 Level 1 4 | . . . . 1 . . . . . 36 . . . . . . Level 2 . | . . . . . . . . . . . . . . . . . Level 3 . | . . . . . . . . . . . . . . . . . Level 4 . | . . . . . . . . . . . . . . . . . Level 5 . | . . . . . . . . . . . . . . . . . High Security . | . . . . . . . . . . . . . . . . . Max Security . | . . . . . . . . . . . . . . . . . Peak Influence 393 | 5 161 60 123 203 70 . 170 65 111 393 198 60 32 115 30 52 Initial 198 | . 3 20 12 46 70 . . 50 31 39 198 1 21 11 15 21 Average 59 | 3 65 7 31 99 56 . 67 58 35 146 87 20 13 35 24 21 Influence Increases 4104 | 5 491 125 389 678 . . 513 15 356 890 15 70 95 291 15 156 Destroy 0b10 Robot/C 1340 | . 320 100 200 380 . . . . . 320 . 20 . . . . Destroy 0b10 Robot/NC 315 | 5 30 5 55 55 . . 15 . 20 30 . 5 20 50 . 25 Destroy Leader 316 | . 74 20 74 106 . . . . 2 22 . . 8 4 . 6 Allied During Kill 95 | . . . . 7 . . . . . 88 . . . . . . Successful Hack 232 | . 5 . 29 35 . . 59 . 55 7 . . . 16 . 26 Disable Machine 195 | . . . 30 75 . . . . . . 15 15 15 . . 45 Destroy Structure 141 | . 2 . 1 20 . . 34 . 24 3 . . 7 26 . 24 Partial Spotted 720 | . . . . . . . 210 15 180 60 . 30 15 195 15 . Lose Combat Pursuer 750 | . 60 . . . . . 195 . 75 360 . . 30 . . 30 Influence Decreases 4104 | . 443 146 310 607 142 40 369 114 319 617 367 13 131 270 30 186 Entered New Map 673 | . 2 33 20 65 112 40 . 94 14 43 157 2 39 13 30 9 Time Decay 2707 | . 391 113 280 452 30 . 329 . 293 330 40 11 72 217 . 149 Lost Part 190 | . 50 . 10 . . . 10 . 12 20 10 . 20 30 . 28 Lost Ally 534 | . . . . 90 . . 30 20 . 224 160 . . 10 . . Squads Dispatched 67 | . 4 1 2 4 . . 13 . 16 2 . . 3 12 . 10 Investigation 41 | . 3 1 . . . . 8 . 11 2 . . 1 8 . 7 Extermination 6 | . . . . . . . 2 . 2 . . . . 1 . 1 Reinforcement 17 | . 1 . 2 1 . . 3 . 3 . . . 2 3 . 2 Assault . | . . . . . . . . . . . . . . . . . Garrison 3 | . . . . 3 . . . . . . . . . . . . Intercept . | . . . . . . . . . . . . . . . . . Searches Triggered . | . . . . . . . . . . . . . . . . . Construction Impeded . | . . . . . . . . . . . . . . . . . Haulers Reinforced 3 | . . . . . . . . . 1 . . . 1 . . 1 Active Scanning Responses . | . . . . . . . . . . . . . . . . . Cargo Convoy Interrupts . | . . . . . . . . . . . . . . . . . Stealth | -11 -10 -10 -9 -9 -9 -9 -6 -6 -6 -6 -6 -6 -6 -5 -5 -5 --------- Run | Yrd Mat Min Mat Sto Rec Scr Fac Was Fac Ext Cet Arc Hub Fac Was Fac Distress Signals 18 | . 1 . 1 5 . . 1 . 4 1 1 . 1 1 . 2 Communications Jammed . | . . . . . . . . . . . . . . . . . Distress Signals . | . . . . . . . . . . . . . . . . . Times Spotted 335 | . 30 5 22 28 . . 25 4 58 46 5 5 20 46 2 39 Peak Tracking Total 18 | . 5 3 3 4 . . 6 4 14 13 5 2 14 14 2 18 Tactical Retreats 56 | . 2 . . . . . 6 . 17 12 1 . 3 10 . 5 ECM-based Alert Blocks 114 | . . . . . . . . . 42 4 3 . 3 47 . 15 Traps | -11 -10 -10 -9 -9 -9 -9 -6 -6 -6 -6 -6 -6 -6 -5 -5 -5 ------- Run | Yrd Mat Min Mat Sto Rec Scr Fac Was Fac Ext Cet Arc Hub Fac Was Fac Traps Triggered 18 | . 4 . 1 . . . 2 . 1 4 . . 1 3 . 2 Indirectly . | . . . . . . . . . . . . . . . . . Trap Hack Attempts . | . . . . . . . . . . . . . . . . . Triggered . | . . . . . . . . . . . . . . . . . Disarmed . | . . . . . . . . . . . . . . . . . Reprogrammed . | . . . . . . . . . . . . . . . . . Reused . | . . . . . . . . . . . . . . . . . Traps Extracted . | . . . . . . . . . . . . . . . . . Installed . | . . . . . . . . . . . . . . . . . Triggered . | . . . . . . . . . . . . . . . . . Machines | -11 -10 -10 -9 -9 -9 -9 -6 -6 -6 -6 -6 -6 -6 -5 -5 -5 ---------- Run | Yrd Mat Min Mat Sto Rec Scr Fac Was Fac Ext Cet Arc Hub Fac Was Fac Machines Disabled 14 | . . . 2 5 . . . . . . 2 1 1 . . 3 Max in Single Turn 1 | . . . 1 1 . . . . . . . 1 1 . . 1 Garrison Access 9 | . . . . . . . 2 . 2 . . . 1 2 . 2 Network Hub 1 | . . . . . . . . . . . . . 1 . . . Machines Repaired . | . . . . . . . . . . . . . . . . . Machines Dismantled 1 | . . . . . . . . . . . . . 1 . . . Machines Sabotaged . | . . . . . . . . . . . . . . . . . Overloaded Fab Kills . | . . . . . . . . . . . . . . . . . Hacking | -11 -10 -10 -9 -9 -9 -9 -6 -6 -6 -6 -6 -6 -6 -5 -5 -5 --------- Run | Yrd Mat Min Mat Sto Rec Scr Fac Was Fac Ext Cet Arc Hub Fac Was Fac Machines Accessed 118 | . 6 1 6 7 . 5 24 . 24 10 . . 3 19 . 13 Terminals 65 | . 4 . 5 6 . . 13 . 11 10 . . 2 8 . 6 Fabricators 7 | . . . . . . . 3 . 4 . . . . . . . Repair Stations 6 | . . . 1 . . . . . 2 . . . . 1 . 2 Recycling Units 24 | . 2 . . 1 . . 6 . 5 . . . . 7 . 3 Scanalyzers 1 | . . . . . . . . . . . . . . 1 . . Garrison Access 9 | . . . . . . . 2 . 2 . . . 1 2 . 2 Total Hacks 339 | . 17 1 23 24 . 20 57 . 77 24 . . 4 61 . 31 Successful 225 | . 7 1 8 11 . 20 40 . 53 11 . . 3 51 . 20 Failed 112 | . 10 . 15 12 . . 17 . 24 13 . . 1 9 . 11 Catastrophic 5 | . 1 . 1 . . . 1 . . . . . . 1 . 1 Database Lockouts 2 | . . . . 1 . . . . . . . . . 1 . . Manual 149 | . 12 . 16 13 . . 31 . 29 7 1 . 1 28 . 11 Terminals 200 | . 12 . 20 20 . . 33 . 43 24 . . 2 31 . 15 Fabricators 21 | . . . . . . . 7 . 14 . . . . . . . Repair Stations 26 | . . . 3 . . . . . 6 . . . . 10 . 7 Recycling Units 54 | . 5 . . 4 . . 13 . 12 . . . . 16 . 4 Scanalyzers 2 | . . . . . . . . . . . . . . 2 . . Garrison Access 15 | . . . . . . . 4 . 2 . . . 2 2 . 5 Terminal Hacks 89 | . 2 1 3 6 . 20 12 . 17 7 . . 1 13 . 7 Record 19 | . . . . . . 19 . . . . . . . . . . Part Schematic 6 | . . . . . . . 4 . . . . . . 2 . . Robot Analysis 3 | . 2 . . . . . . . 1 . . . . . . . Prototype ID Bank 2 | . . . . 2 . . . . . . . . . . . . Open Door 10 | . . 1 . 2 . 1 . . . 6 . . . . . . Branch Access Points 3 | . . . 1 . . . . . 1 . . . . . . 1 Emergency Access Points 6 | . . . . . . . . . 3 . . . . 3 . . Terminal Index 4 | . . . . . . . 1 . 1 . . . . 1 . 1 Fabricator Index 1 | . . . . . . . 1 . . . . . . . . . Garrison Index 3 | . . . . . . . . . 1 . . . . 1 . 1 Locate Traps 14 | . . . 1 1 . . 2 . 4 1 . . 1 1 . 3 Maintenance Status 2 | . . . . . . . . . 1 . . . . 1 . . Investigation Status 3 | . . . . . . . 1 . 2 . . . . . . . Recall Extermination 4 | . . . . . . . 2 . . . . . . 2 . . Recall Reinforcements 1 | . . . . . . . . . 1 . . . . . . . Hauler Manifests 7 | . . . 1 1 . . 1 . 1 . . . . 2 . 1 Zone Layout 1 | . . . . . . . . . 1 . . . . . . . Fabricator Hacks 10 | . . . . . . . 3 . 7 . . . . . . . Network Status 1 | . . . . . . . . . 1 . . . . . . . Load Schematic 5 | . . . . . . . 2 . 3 . . . . . . . Build 4 | . . . . . . . 1 . 3 . . . . . . . Repair Station Hacks 18 | . . . 2 . . . . . 4 . . . . 10 . 2 Scan Component 8 | . . . 1 . . . . . 2 . . . . 5 . . Repair 8 | . . . 1 . . . . . 2 . . . . 5 . . Refit 2 | . . . . . . . . . . . . . . . . 2 Recycling Unit Hacks 21 | . 2 . . 1 . . 5 . 4 . . . . 7 . 2 Retrieve Components 21 | . 2 . . 1 . . 5 . 4 . . . . 7 . 2 Scanalyzer 2 | . . . . . . . . . . . . . . 2 . . Insert Component 1 | . . . . . . . . . . . . . . 1 . . Analyze 1 | . . . . . . . . . . . . . . 1 . . Garrison Access Hacks 9 | . . . . . . . 2 . 2 . . . 1 2 . 2 Seal Access 9 | . . . . . . . 2 . 2 . . . 1 2 . 2 Unauthorized Hacks 76 | . 3 . 3 4 . . 18 . 19 4 . . 1 17 . 7 Terminals 44 | . . . 3 2 . . 11 . 9 4 . . 1 10 . 4 Track 3 | . . . . . . . 1 . 1 . . . . 1 . . Assimilate 10 | . . . 1 . . . 4 . 1 2 . . . 1 . 1 Botnet 18 | . . . 1 1 . . 4 . 4 2 . . . 4 . 2 Disrupt 6 | . . . . . . . 1 . 2 . . . . 3 . . Operators 6 | . . . 1 1 . . 1 . 1 . . . . 1 . 1 Sabotage 1 | . . . . . . . . . . . . . 1 . . . Fabricators 5 | . . . . . . . 1 . 4 . . . . . . . Prioritize 4 | . . . . . . . 1 . 3 . . . . . . . Recompile 1 | . . . . . . . . . 1 . . . . . . . Repair Stations 2 | . . . . . . . . . 1 . . . . . . 1 Patch 2 | . . . . . . . . . 1 . . . . . . 1 Recycling Units 25 | . 3 . . 2 . . 6 . 5 . . . . 7 . 2 Reject 3 | . 2 . . 1 . . . . . . . . . . . . Recyclers 2 | . 1 . . 1 . . . . . . . . . . . . Fedlink 20 | . . . . . . . 6 . 5 . . . . 7 . 2 Scanalyzers . | . . . . . . . . . . . . . . . . . Garrison Access . | . . . . . . . . . . . . . . . . . Data Cores Recovered 3 | . . . . 1 . . 1 . . 1 . . . . . . Used . | . . . . . . . . . . . . . . . . . Hacking Detections 62 | . 5 . 6 5 . . 15 . 14 5 . . . 7 . 5 Full Trace Events 11 | . 2 . . . . . 2 . 4 2 . . . . . 1 Feedback Events 2 | . . . . . . . . . 1 . . . . . . 1 Corruption 1 | . . . . . . . . . 1 . . . . . . . Hackware Fried 1 | . . . . . . . . . . . . . . . . 1 Feedback Blocked . | . . . . . . . . . . . . . . . . . Robot Schematics Acquired . | . . . . . . . . . . . . . . . . . Robots Built . | . . . . . . . . . . . . . . . . . Authchips . | . . . . . . . . . . . . . . . . . Time . | . . . . . . . . . . . . . . . . . Total Robot Build Rating . | . . . . . . . . . . . . . . . . . Part Schematics Acquired 7 | . . . . . . . 4 . . . . . . 3 . . Parts Built 4 | . . . . . . . 1 . 3 . . . . . . . Authchips . | . . . . . . . . . . . . . . . . . Time 166 | . . . . . . . 33 . 133 . . . . . . . Total Part Build Rating 16 | . . . . . . . 4 . 12 . . . . . . . Part Studies Acquired . | . . . . . . . . . . . . . . . . . Parts Repaired 8 | . . . 1 . . . . . 2 . . . . 5 . . Time 422 | . . . 26 . . . . . 48 . . . . 348 . . Parts Recycled . | . . . . . . . . . . . . . . . . . Recycled Matter . | . . . . . . . . . . . . . . . . . Retrieved Matter . | . . . . . . . . . . . . . . . . . Retrieved Components 42 | . 9 . . 9 . . 11 . 7 . . . . 5 . 1 Parts Scanalyzed 1 | . . . . . . . . . . . . . . 1 . . Part Schematics Acquired 1 | . . . . . . . . . . . . . . 1 . . Parts Damaged . | . . . . . . . . . . . . . . . . . Bothacking | -11 -10 -10 -9 -9 -9 -9 -6 -6 -6 -6 -6 -6 -6 -5 -5 -5 ------------ Run | Yrd Mat Min Mat Sto Rec Scr Fac Was Fac Ext Cet Arc Hub Fac Was Fac Used RIF Installer . | . . . . . . . . . . . . . . . . . Robots Hacked 11 | . . . . . . . 1 . 1 . . . . 9 . . Non-combat 11 | . . . . . . . 1 . 1 . . . . 9 . . Combat . | . . . . . . . . . . . . . . . . . Robot Hacks Applied 11 | . . . . . . . 1 . 1 . . . . 9 . . no_distress 6 | . . . . . . . . . . . . . . 6 . . find_chute 3 | . . . . . . . 1 . . . . . . 2 . . find_station 2 | . . . . . . . . . 1 . . . . 1 . . Relay Couplers Released . | . . . . . . . . . . . . . . . . . Fabnet Peak Effective % . | . . . . . . . . . . . . . . . . . Robots Rewired 14 | . . . . . . . . . . 14 . . . . . . Allies Hacked . | . . . . . . . . . . . . . . . . . Hacks Repelled . | . . . . . . . . . . . . . . . . . Allies | -11 -10 -10 -9 -9 -9 -9 -6 -6 -6 -6 -6 -6 -6 -5 -5 -5 -------- Run | Yrd Mat Min Mat Sto Rec Scr Fac Was Fac Ext Cet Arc Hub Fac Was Fac Total Allies 28 | . . . . . . . 3 1 1 21 1 . . 1 . . Largest Group 9 | . . . . . . . 2 1 1 9 7 . . 1 . . Highest-Rated Group 371 | . . . . . . . 36 31 10 371 326 . . 9 . . Highest-Rated Ally 159 | . . . . . . . 26 31 10 159 159 . . 9 . . Initial UFD Resources 83 | . . . . . . . 23 45 45 55 55 55 55 59 83 83 Total Orders 5 | . . . . 5 . . . . . . . . . . . . EXPLORE 5 | . . . . 5 . . . . . . . . . . . . Ally Attacks 136 | . . . . . . . . 1 . 117 18 . . . . . Total Damage 3004 | . . . . . . . . 20 . 2474 510 . . . . . Kills 17 | . . . . . . . . . . 17 . . . . . . Allies Corrupted 1 | . . . . 1 . . . . . . . . . . . . Allies Melted 1 | . . . . . . . . . . 1 . . . . . . Intel | -11 -10 -10 -9 -9 -9 -9 -6 -6 -6 -6 -6 -6 -6 -5 -5 -5 ------- Run | Yrd Mat Min Mat Sto Rec Scr Fac Was Fac Ext Cet Arc Hub Fac Was Fac Active Infowar (turns) 10360 | . 716 760 913 1125 72 3218 886 18 702 853 99 74 154 367 11 392 Optics 4653 | . . 760 913 1125 72 1783 . . . . . . . . . . Sensors 245 | . . . . . . . . . . . . . . . . 245 IFF 2808 | . . . . . . . 868 18 586 852 99 74 154 72 . 85 Terrain 110 | . . . . . . . 110 . . . . . . . . . Structural 4999 | . . . 612 731 72 3218 366 . . . . . . . . . T.N.C. 917 | . 716 . . . . . . . . . . . . . . 201 ECM 1301 | . . . . . . . 7 . 502 77 60 59 76 367 11 142 Robot Analysis Total 3 | . 2 . . . . . . . 1 . . . . . . . Derelict Logs Recovered 1 | . . 1 . . . . . . . . . . . . . . Drone Launches 38 | . . . . 38 . . . . . . . . . . . . Drone Recoveries 22 | . . . . 22 . . . . . . . . . . . . Exploration | -11 -10 -10 -9 -9 -9 -9 -6 -6 -6 -6 -6 -6 -6 -5 -5 -5 ------------- Run | Yrd Mat Min Mat Sto Rec Scr Fac Was Fac Ext Cet Arc Hub Fac Was Fac Turns Passed 11631 | 16 1182 957 913 1125 72 3218 908 18 729 882 99 74 172 863 11 392 Spaces Moved 12903 | 5 616 562 425 486 46 1975 2452 66 2058 1296 106 53 409 1365 61 922 Core 4 | . . . . . . . . . . . . . . . . 4 Treads 3733 | 5 234 562 425 486 46 1975 . . . . . . . . . . Legs 382 | . 382 . . . . . . . . . . . . . . . Wheels . | . . . . . . . . . . . . . . . . . Hover . | . . . . . . . . . . . . . . . . . Flight 8784 | . . . . . . . 2452 66 2058 1296 106 53 409 1365 61 918 Fastest Speed 6 | 160 120 160 160 160 160 160 28 23 23 14 14 14 14 6 18 18 Average Speed 66 | 160 135 160 160 160 160 160 28 23 23 23 21 22 22 19 18 24 Slowest Speed 160 | 160 160 160 160 160 160 160 28 27 27 25 24 24 24 88 18 50 Overloaded Moves 521 | . . . . . . . . 64 . 71 23 7 62 172 61 61 Propulsion Burnouts . | . . . . . . . . . . . . . . . . . Robots Hopped 67 | . . . . . . . 13 . 13 9 1 . 2 13 . 16 Potential Cave-ins . | . . . . . . . . . . . . . . . . . Cave-ins Triggered . | . . . . . . . . . . . . . . . . . Exploration Rate (%) 57 | 2 88 98 42 82 15 95 60 75 46 84 49 61 39 48 67 28 Regions Visited 16 Branch Regions 8 Pre-discovered Areas 4 | . . 2 . . . 1 1 . . . . . . . . . Known Exits Taken 2 | . . . 1 . . . . . 1 . . . . . . . Unknown Exits Taken 10 | 1 1 1 . 1 1 1 . . . 1 1 1 1 . . . Scrap Searched 8 | . . 1 . . . 7 . . . . . . . . . . Spaces Dug 101 | . . . . 11 . . 34 . 24 . . . 7 13 . 12 Terrain Destroyed 101 | . . . . 11 . . 34 . 24 . . . 7 13 . 12 Melee 90 | . . . . . . . 34 . 24 . . . 7 13 . 12 Projectile . | . . . . . . . . . . . . . . . . . AOE 11 | . . . . 11 . . . . . . . . . . . . Terrain Rammed . | . . . . . . . . . . . . . . . . . Walls Destroyed . | . . . . . . . . . . . . . . . . . Machines Disabled . | . . . . . . . . . . . . . . . . . Actions | -11 -10 -10 -9 -9 -9 -9 -6 -6 -6 -6 -6 -6 -6 -5 -5 -5 --------- Run | Yrd Mat Min Mat Sto Rec Scr Fac Was Fac Ext Cet Arc Hub Fac Was Fac Total 15244 | 10 796 595 583 700 45 2036 2608 67 2245 1844 179 98 446 1902 60 1030 Wait 1383 | . 45 5 47 59 . 43 76 . 118 401 73 34 1 451 . 30 Move 12767 | 4 615 561 424 485 45 1974 2427 65 2031 1278 103 52 404 1343 60 896 Hop 55 | . . . . . . . 12 . 13 8 1 . 2 9 . 10 Pick Up 117 | . 14 7 23 13 . 6 10 1 10 2 . 1 1 18 . 11 Fast Attach 50 | . 6 1 6 5 . 2 3 . 2 2 . . 1 13 . 9 Attach 40 | 2 5 . 2 1 . 3 11 . 3 . 1 . 3 5 . 4 Detach 8 | . . . . . . . 3 . . . . . 2 1 . 2 Swap 115 | . 8 1 13 27 . . 10 1 22 12 1 1 4 6 . 9 Drop 154 | 2 9 4 27 31 . 8 14 . 14 5 . . 1 18 . 21 Fire 213 | 2 91 12 41 67 . . . . . . . . . . . . Melee 195 | . . . . 3 . . 42 . 32 15 . 10 24 38 . 31 Ram . | . . . . . . . . . . . . . . . . . Kick 3 | . 3 . . . . . . . . . . . . . . . Crush 6 | . . 4 . 2 . . . . . . . . . . . . Escape Stasis 66 | . . . . . . . . . . 59 . . . . . 7 Rewire 62 | . . . . . . . . . . 62 . . . . . . Trap . | . . . . . . . . . . . . . . . . . Miscellaneous 10 | . . . . 7 . . . . . . . . 3 . . . Route ------- -11/Scrapyard -10/Materials (discovered 3 exits: *Mat x2 / *Min) -10/Mines (discovered 2 exits: *Mat x2) -9/Materials (discovered 4 exits: [*Mat] / Min / *Sto x2) -9/Storage (discovered 2 exits: [*Mat] / [*Rec]) -9/Recycling -9/Scraptown (discovered 2 exits: *Fac x2) -6/Factory (discovered 3 exits: *Fac / *Low / *Ext) -6/Waste -6/Factory (discovered 4 exits: *Low x2 / *Ext x2) -6/Extension (discovered 2 exits: *Fac / *Cet) -6/Cetus -6/Archives -6/Hub_04(d) (discovered 2 exits: *Fac x2) -5/Factory -5/Waste -5/Factory (discovered 2 exits: Upp x2) History --------- Turn | Location | Event 10 | -11/Scrapyard | Discovered new exit (range 3) 17 | -11/Scrapyard | Entered Materials 102 | -10/Materials | Discovered new exit (range 6) 300 | -10/Materials | Discovered new exit (range 16) 315 | -10/Materials | Build established: Mutant 721 | -10/Materials | Core integrity fell below 50% 971 | -10/Materials | Discovered new exit (range 9) 1199 | -10/Materials | Entered Mines 1223 | -10/Mines | Discovered new exit (range 7) 1319 | -10/Mines | Learned location of Zion (-6) 1335 | -10/Mines | Discovered new exit (range 14) 1384 | -10/Mines | Met a Derelict shopkeep closing up shop 1484 | -10/Mines | Learned location of Storage (-9) 1618 | -10/Mines | Received a Rocket Launcher from a helpful Derelict 1843 | -10/Mines | A weapon hastily lodged in a ceiling crevice suddenly fell to the ground 2156 | -10/Mines | Entered Materials 2156 | -9/Materials | Evolved 2 slots: Utility x2 2492 | -9/Materials | Repaired Lgt. Treads 2990 | -9/Materials | Discovered new exit (range 12) 3015 | -9/Materials | Discovered new exit (range 8) 3023 | -9/Materials | Identified exit to Mines 3023 | -9/Materials | Identified exit to Storage 3069 | -9/Materials | Entered Storage 3268 | -9/Storage | Lost 8 allies 3330 | -9/Storage | Build established: Scavenger-Mutant 3345 | -9/Storage | Lost 3 allies 3460 | -9/Storage | Central database locked down 3663 | -9/Storage | Garrison activated, responded to threat 3908 | -9/Storage | Discovered new exit (range 5) 4162 | -9/Storage | Used back door to open Recycling access 4162 | -9/Storage | Discovered new exit (range 5) 4194 | -9/Storage | Entered Recycling 4195 | -9/Recycling | Met a Zionite searching for Scraptown 4230 | -9/Recycling | Scanned before Scraplab entrance 4247 | -9/Recycling | Discovered new exit (range 11) 4252 | -9/Recycling | Entered Scraplab 4266 | -9/Recycling | Entered Scraptown 4466 | -9/Scraptown | Visited UFD Registry 4466 | -9/Scraptown | Registered with UFD as "Zeroface" 4497 | -9/Scraptown | Visited Cyclists 4508 | -9/Scraptown | Entered Cyclist Reading Room 4554 | -9/Scraptown | Visited Fellowship of the Rings 4565 | -9/Scraptown | Heard Great Nut preacher, LISTEN AND RECITE! 4618 | -9/Scraptown | Discovered new exit (range 11) 5200 | -9/Scraptown | Visited TADAMA 5213 | -9/Scraptown | Visited Artisan Demo Area 5272 | -9/Scraptown | Visited Bundlers 5358 | -9/Scraptown | Visited Junk Repository 5977 | -9/Scraptown | Visited Abandonware Association 6000 | -9/Scraptown | Learned abandonware demo "SHUTEYE.EXE" 6000 | -9/Scraptown | Learned abandonware demo "TRNCOAT.EXE" 6035 | -9/Scraptown | Visited A0-MCA Data Center 6045 | -9/Scraptown | Given a B rating by A0-MCA 6048 | -9/Scraptown | Found A0-MCA's Component Scanner 6154 | -9/Scraptown | Visited LU-1G1's Boring Crew 6410 | -9/Scraptown | Visited Chapter 10 6481 | -9/Scraptown | Visited Scrap Suit Storage 6521 | -9/Scraptown | Visited Sword Containment 6540 | -9/Scraptown | Found Companion Sword 6596 | -9/Scraptown | Discovered new exit (range 5) 6759 | -9/Scraptown | Visited Curators Association 6801 | -9/Scraptown | Visited Cartography Club 6904 | -9/Scraptown | Found Surveybot 17 Chip 7139 | -9/Scraptown | Visited Junk Repository 7396 | -9/Scraptown | Met Optimus 7396 | -9/Scraptown | Accepted into 0bPrime 7484 | -9/Scraptown | Entered Factory 7484 | -6/Factory | Evolved 6 slots: Propulsion x3, Utility x3 7600 | -6/Factory | Loaded intel: 8 recycling unit locations 7658 | -6/Factory | Discovered new exit (range 11) 7672 | -6/Factory | Learned location of Protoforge (-3) 7795 | -6/Factory | Discovered new exit (range 6) 7814 | -6/Factory | Build established: Hacker-Sprinter 8233 | -6/Factory | Spotted B-75 Beast 8245 | -6/Factory | Discovered new exit (range 8) 8377 | -6/Factory | Fabricated Cld. VTOL Module? 8392 | -6/Factory | Sucked down chute 8392 | -6/Factory | Entered Waste 8393 | -6/Waste | Met a frightened Derelict 8396 | -6/Waste | Spotted C-40 Crusher 8399 | -6/Waste | Spotted C-40 Crusher 8400 | -6/Waste | Spotted C-40 Crusher 8401 | -6/Waste | Spotted C-40 Crusher 8402 | -6/Waste | Spotted C-40 Crusher 8402 | -6/Waste | Spotted C-40 Crusher 8407 | -6/Waste | Discovered new exit (range 10) 8410 | -6/Waste | Entered Factory 8423 | -6/Factory | Loaded intel: 8 recycling unit locations 8437 | -6/Factory | Identified exit to Lower Caves 8437 | -6/Factory | Identified exit to Extension 8492 | -6/Factory | Watched by a mysterious "MATRIX" hacker. 8505 | -6/Factory | Repaired Lgt. Armor Plating 8589 | -6/Factory | Fabricated Cld. VTOL Module (x1) 8599 | -6/Factory | Spotted B-75 Beast 8716 | -6/Factory | Fabricated Cld. VTOL Module? 8993 | -6/Factory | Repaired Cld. VTOL Module 9069 | -6/Factory | Fabricated Cld. VTOL Module? 9139 | -6/Factory | Entered Extension 9183 | -6/Extension | Rescued a captive Derelict 9245 | -6/Extension | Spotted B-75 Beast 9297 | -6/Extension | Spotted B-75 Beast 9312 | -6/Extension | Rescued a captive Derelict 9313 | -6/Extension | Rescued a captive Derelict 9322 | -6/Extension | Rescued a captive Derelict 9322 | -6/Extension | Rescued a captive Derelict 9324 | -6/Extension | Rescued a captive Derelict 9324 | -6/Extension | Rescued a captive Derelict 9393 | -6/Extension | Lost 4 allies 9533 | -6/Extension | Lost 3 allies 9597 | -6/Extension | Rescued A7 9636 | -6/Extension | Rescued a captive Derelict 9866 | -6/Extension | Lost 3 allies 9873 | -6/Extension | Discovered new exit (range 10) 9873 | -6/Extension | Discovered new exit (range 6) 10021 | -6/Extension | Entered Cetus 10021 | -6/Cetus | Accompanied by 7 allies (A7) 10026 | -6/Cetus | Acquired a Cetus Manufacturing Module code from A7 10036 | -6/Cetus | Spotted Cetus Guard 10036 | -6/Cetus | Spotted Cetus Guard 10047 | -6/Cetus | Spotted Cetus Guard 10047 | -6/Cetus | Spotted Cetus Guard 10057 | -6/Cetus | Extracted ID and sensor layout for unrecognized location from A7's data core 10066 | -6/Cetus | Started Cetus Manufacturing Module 10088 | -6/Cetus | Lost 4 allies 10091 | -6/Cetus | Manufactured an Enhanced Grunt 10096 | -6/Cetus | Cetus Manufacturing Module disabled 10112 | -6/Cetus | Discovered new exit (range 16) 10120 | -6/Cetus | Entered Archives 10181 | -6/Archives | Discovered new exit (range 15) 10194 | -6/Archives | Entered Hub_04(d) 10199 | -6/Hub_04(d) | Discovered new exit (range 11) 10325 | -6/Hub_04(d) | Discovered new exit (range 12) 10360 | -6/Hub_04(d) | Network Hub disabled 10364 | -6/Hub_04(d) | Spotted Lightning 10364 | -6/Hub_04(d) | Spotted Lightning 10364 | -6/Hub_04(d) | Spotted Lightning 10366 | -6/Hub_04(d) | Entered Factory 10366 | -5/Factory | Evolved 2 slots: Propulsion x1, Utility x1 10452 | -5/Factory | Repaired Cld. VTOL Module 10525 | -5/Factory | Repaired Cld. VTOL Module 10598 | -5/Factory | Repaired Cld. VTOL Module 10670 | -5/Factory | Repaired Mic. Antimatter Reactor 10742 | -5/Factory | Repaired Imp. Cesium-ion Thruster 10898 | -5/Factory | Loaded intel: 8 recycling unit locations 10968 | -5/Factory | Spotted B-75 Beast 11010 | -5/Factory | Central database locked down 11179 | -5/Factory | Targeted by mysterious "MATRIX" hacker. 11229 | -5/Factory | Manually triggered Chute Trap 11229 | -5/Factory | Sucked down chute 11229 | -5/Factory | Entered Waste 11231 | -5/Waste | Spotted C-40 Crusher 11233 | -5/Waste | Spotted C-40 Crusher 11234 | -5/Waste | Spotted C-40 Crusher 11238 | -5/Waste | Spotted C-40 Crusher 11239 | -5/Waste | Discovered new exit (range 11) 11239 | -5/Waste | Spotted C-40 Crusher 11240 | -5/Waste | Entered Factory 11295 | -5/Factory | Imp. Hacking Suite fried by hacking feedback 11539 | -5/Factory | Identified exit to Upper Caves 11579 | -5/Factory | Loaded intel: 8 recycling unit locations 11630 | -5/Factory | Core integrity fell below 50% 11632 | -5/Factory | Self-destructed Last Messages --------------- 11619_ Penetrated by Slug. 11619_ Knocked back. 11622_ Acquired Lgt. Fission Core. 11625_ Backup Power I destroyed. 11626_ Nuclear Pulse Thruster destroyed. 11627_ Nuclear Pulse Array destroyed. 11627_ C-35 Carver system corrupted by crushing effect. 11627_ Dropped Companion Sword. Companion Sword: "How dare you drop me?!" 11627_ Hacking Suite severed. 11628_ C-35 Carver system terminally corrupted. 11628_ M-13 Machinist repairs S-27 Virus. 11629_ Imp. Hacking Suite destroyed. 11629_ Biomechanical Wings destroyed. 11629_ Knocked back. 11629_ Dropped Med. Storage Unit. 11630_ Cld. VTOL Module destroyed. 11630_ Slug penetrates C-35 Carver. 11630_ Penetrated by Slug. 11632_ A0-MCA's Component Scanner severed. Map ----- +----------------------------------------------------+ | ?????####### #????# #??##### | | ?????# ###??# #??????? | | ?????# #??# [ #??????? | | ?????# #??##########??????? | | ?????# ######?????????????? | | ?????# #?????????????? | | ?????# ##########????? | | ?????# !![ # ! ????? | | ?#####+### ![[ # !????? | | ?# # ![[ # ?????? | | ?# """"" # # """"""??????? | | ?# ""Y"" # " " + """""""?????? | | ?# # "R" # """"""" ????? | | ?# ## """ # """"""" #???? | | ?# ## [ # #???? | | ?# """ ## % =###########???? | | ?# """"" ######## #?????????????? | | ?# """"" #??????# #?????????????? | | ?# #?????## %##????????????? | | ?# ] #?????# !% ############+# | | ?###############t!! % | | ???# s!*| % / | | ???????# ## H | | ???????# c ## "#"#########+# | | ???????+ ######## """ #???? | | ???????###@####??????#= ""R" #???? | | ?????????#w#?????????# "" " #???? | | ?????????# #?????????# #???? | | ????????? ?????????# #???? | | ????????? ?????????# #???? | | ????????? Y ?????????# #???? | | ????????? = ?????????# * #???? | | ???????? ????????#*! #???? | | ????????#k #????????##########???? | | ????????# #?????????????????????? | | ????????# #?????????????????????? | | ????????# #?????????????????????? | | ????????# #?????????????????????? | | ????????? ??????????????????????? | | ????????? ??????????????????????? | | ????????? ??????????????????????? | | ??????????????????????????????????? | | ??????????????????????????????????? | | ??????????????????????????????????? | | ??????????????????????????????????? | | ??????????????????????????????????? | | ??????????????????????????????????? | | ??????????????????????????????????? | | ??????????????????????????????????? | | ??????????????????????????????????? | +----------------------------------------------------+ Best States ------------- Heat Dissipation 42 Energy Generation 25 Energy Capacity 275 Matter Stores 300 Matter Capacity 300 Sight Range 20 Robot Scan Range 15 Terrain Scan Range 20 Terrain Scan Density 10 ECM Strength 1 Power Amplification 20 Additional Mass Support 9 Armor Coverage 225 Weapon Shielding 33 Evasion (%) 66 Recoil Reduction 2 Offensive Hacking 40 Defensive Hacking 12 Authchip Count 1 Item Schematics ----------------- Cld. VTOL Module | -6/Factory | Hacked ECM Suite | -6/Factory | Hacked Rocket Array | -6/Factory | Hacked Adv. Hacking Suite | -6/Factory | Hacked Biomechanical Wings | -5/Factory | Scanalyzed Stasis Canceller | -5/Factory | Hacked Adv. System Shield | -5/Factory | Hacked Robot Schematics ------------------ None Fabricated ------------ Cld. VTOL Module | x1 | -6/Factory Cld. VTOL Module | x1 | -6/Factory Cld. VTOL Module | x1 | -6/Factory Cld. VTOL Module | x1 | -6/Factory Repaired ---------- Lgt. Treads | 64% | -9/Materials Lgt. Armor Plating | 52% | -6/Factory Cld. VTOL Module | 38% | -6/Factory Cld. VTOL Module | 18% | -5/Factory Cld. VTOL Module | 61% | -5/Factory Cld. VTOL Module | 71% | -5/Factory Mic. Antimatter Reactor | 62% | -5/Factory Imp. Cesium-ion Thruster | 51% | -5/Factory Studied --------- None Alien Tech Used ----------------- None Achievements -------------- Bending The Rules Wiki Contributor Challenges ------------ None Game ------ Seed AuthchipBiometalCapacitor Manual? 0 Play Time 03:50:11 Cumulative 488.8 hours Start 2026.02.23 @ 03:01:48 End 2026.02.23 @ 07:36:56 Sessions 1 Manual Loads 0 Difficulty Rogue Special Mode None Game No. 229 Rogue 229 Adventurer 0 Explorer 0 Win Type - Total 15 Types 8/0/5/2/0/0/0/0/0/0 Lore% 79 Gallery% 74 Achievement% 56 Wizard Run 0 Options --------- Layout 0 ASCII 0 Keyboard 0 Movement Numpad Keybinds 0 Fullscreen 1 Font 18/SmallcapsGlow Map View 76x50 Zoom Use 0% Tactical HUD 1 Map Filters NONE Filters NONE Steam 1 RUN: 1bf3e1e8-977c-4687-9dd7-f0f53287c4f5